bitfinex/quotes_BTCUSD_20250620
["timestamp","ask_amount","ask_price","bid_price","bid_amount"]
[1750428362709,0.0333,105790.0,105780.0,0.47618299]
[1750428363595,0.04275188,105790.0,105780.0,0.47618299]
[1750428363826,0.61455313,105790.0,105780.0,0.37146738]
[1750428364088,0.61455304,105790.0,105780.0,0.39037337]
[1750428364304,0.06165663,105790.0,105780.0,0.38737337]
[1750428364531,0.05320421,105790.0,105780.0,0.38737337]
[1750428364754,1.13415511,105790.0,105780.0,8.902e-05]
[1750428364974,1.22943404,105790.0,105780.0,8.902e-05]
[1750428365209,1.23643404,105790.0,105780.0,0.18916067]
[1750428365432,0.4086569,105790.0,105780.0,0.21752033]
[1750428365672,0.41810949,105790.0,105780.0,0.21752033]
[1750428365906,0.95455322,105790.0,105780.0,0.37788033]
[1750428366134,1.16251227,105790.0,105780.0,0.21752051]
[1750428366370,0.97600581,105790.0,105780.0,0.38833355]
[1750428366608,0.96655322,105790.0,105780.0,0.3977865]
[1750428367344,1.16505968,105790.0,105780.0,0.38833355]
[1750428367577,0.96655322,105790.0,105780.0,0.3977865]
[1750428367834,0.96655322,105790.0,105780.0,0.55079296]
[1750428367835,0.0323,105790.0,105780.0,0.55079296]
[1750428368086,0.0363,105790.0,105780.0,0.55079296]
[1750428368321,0.0473,105790.0,105780.0,0.49210543]
[1750428368769,0.0433,105790.0,105780.0,0.49210543]
[1750428368988,0.0323,105790.0,105780.0,0.49210543]
[1750428369214,0.0353,105790.0,105780.0,0.49210543]
[1750428369433,0.0423,105790.0,105780.0,0.49210543]
[1750428369652,0.0393,105790.0,105780.0,0.56784934]
[1750428370299,0.007,105790.0,105780.0,0.56784934]
[1750428371541,0.007,105790.0,105780.0,1.12074575]
[1750428371788,0.007,105790.0,105780.0,0.56784934]
[1750428372008,0.039,105790.0,105780.0,0.49206543]
[1750428372445,0.032,105790.0,105780.0,0.49506543]
[1750428372660,0.033,105790.0,105780.0,0.49506543]
[1750428373091,0.032,105790.0,105780.0,0.49206543]
[1750428373317,0.04845188,105790.0,105780.0,0.49206543]
[1750428373542,0.039,105790.0,105780.0,0.49206543]
[1750428373762,0.039,105790.0,105780.0,0.56018085]
[1750428374924,0.007,105790.0,105780.0,0.56018085]
[1750428375169,0.007,105790.0,105780.0,0.39982085]
[1750428375405,0.007,105790.0,105780.0,1.11307726]
[1750428375642,0.007,105790.0,105780.0,1.12761811]
[1750428375877,0.007,105790.0,105780.0,1.48401811]
[1750428376122,0.0316,105820.0,105810.0,0.21736967]
[1750428376356,0.0316,105820.0,105810.0,0.4729686]
[1750428376602,0.0316,105820.0,105810.0,0.51549778]
[1750428377071,0.3879297,105830.0,105820.0,0.21734913]
[1750428377326,0.0319297,105830.0,105820.0,0.31262806]
[1750428377585,0.0168297,105830.0,105820.0,0.31262806]
[1750428377841,0.0168297,105830.0,105820.0,0.40789791]
[1750428378755,0.0168297,105830.0,105820.0,0.96079432]
[1750428378980,0.0168297,105830.0,105820.0,0.40789791]
[1750428380145,0.0178297,105830.0,105820.0,0.96079432]
[1750428380593,0.0178297,105830.0,105820.0,0.41089791]
[1750428382803,0.0178297,105830.0,105820.0,0.61473791]
[1750428384194,0.0168297,105830.0,105820.0,0.61473791]
[1750428384415,0.0168297,105830.0,105820.0,0.57117791]
[1750428384857,0.0168297,105830.0,105820.0,0.31062806]
[1750428385095,0.0493297,105830.0,105820.0,0.47086806]
[1750428385317,0.63057166,105830.0,105820.0,0.47086806]
[1750428385542,0.62112291,105830.0,105820.0,0.47086806]
[1750428385799,0.07767517,105830.0,105820.0,0.47086806]
[1750428386229,0.08712401,105830.0,105820.0,0.47086806]
[1750428386449,0.82900337,105830.0,105820.0,0.21089984]
[1750428386668,1.2642823,105830.0,105820.0,0.003]
[1750428386887,1.28890514,105830.0,105820.0,0.003]
[1750428387608,0.04165027,105810.0,105800.0,0.36816197]
[1750428387827,0.80246563,105810.0,105800.0,0.19847125]
[1750428388049,0.81191635,105810.0,105800.0,0.38706572]
[1750428388270,0.82136725,105810.0,105800.0,0.38706572]
[1750428388539,0.81191698,105810.0,105800.0,0.16969179]
[1750428388761,0.60399803,105810.0,105800.0,0.37763065]
[1750428388977,0.60399803,105810.0,105800.0,0.3870819]
[1750428389193,0.79301608,105810.0,105800.0,0.37763065]
[1750428389418,0.79301608,105810.0,105800.0,0.3870819]
[1750428389646,0.61344767,105810.0,105800.0,0.39653307]
[1750428389859,0.6045465,105810.0,105800.0,0.39653307]
[1750428390075,0.06110045,105810.0,105800.0,0.39653307]
[1750428390287,0.0705509,105810.0,105800.0,0.39653307]
[1750428390503,0.06110036,105810.0,105800.0,0.39653307]
[1750428390728,0.2784703,105810.0,105800.0,0.39653307]
[1750428390975,0.81246635,105810.0,105800.0,0.37763083]
[1750428391616,0.81346635,105810.0,105800.0,0.37763083]
[1750428392057,0.81346635,105810.0,105800.0,0.38708226]
[1750428392282,0.80401599,105810.0,105800.0,0.2079394]
[1750428392502,0.80401599,105810.0,105800.0,0.3681794]
[1750428392722,0.80401599,105810.0,105800.0,0.38708235]
[1750428393142,0.80401599,105810.0,105800.0,0.3965336]
[1750428393870,0.80401599,105810.0,105800.0,0.38708235]
[1750428394586,1.14401599,105810.0,105800.0,0.3681794]
[1750428395082,1.13456536,105810.0,105800.0,0.3681794]
[1750428395311,1.13456536,105810.0,105800.0,0.38708217]
[1750428396030,0.58166895,105810.0,105800.0,0.38708217]
[1750428396155,1.13456536,105810.0,105800.0,0.3681794]
[1750428396368,1.13456536,105810.0,105800.0,0.37763092]
[1750428396583,1.13456536,105810.0,105800.0,0.38708235]
[1750428396800,0.58166895,105810.0,105800.0,0.37763092]
[1750428397012,1.13456536,105810.0,105800.0,0.37763092]
[1750428397246,0.00945188,105790.0,105780.0,0.19852451]
[1750428397480,0.59254829,105790.0,105780.0,0.45413246]
[1750428397706,0.60200026,105790.0,105780.0,0.46358559]
[1750428397949,0.61145241,105790.0,105780.0,0.46354559]
[1750428398163,0.04910385,105790.0,105780.0,0.46354559]
[1750428398378,0.03965099,105800.0,105790.0,0.21741076]
[1750428398624,0.04910216,105800.0,105790.0,0.21741076]
[1750428398854,0.06800493,105800.0,105790.0,0.21741076]
[1750428399098,0.07745725,105800.0,105790.0,0.21741076]
[1750428399324,0.05975672,105790.0,105780.0,0.46354559]
[1750428399550,0.05030412,105790.0,105780.0,0.46354559]
[1750428400109,0.05730412,105790.0,105780.0,0.46354559]
[1750428400314,0.04785197,105790.0,105780.0,0.46354559]
[1750428400518,0.007,105790.0,105780.0,0.46354559]
[1750428400721,0.007,105790.0,105780.0,1.08932993]
[1750428400896,0.007,105790.0,105780.0,1.12052993]
[1750428401096,0.007,105790.0,105780.0,0.99418207]
[1750428401319,0.007,105790.0,105780.0,1.60707848]
[1750428402886,0.007,105790.0,105780.0,1.75707848]
[1750428403783,0.006,105790.0,105780.0,1.75707848]
[1750428404230,0.02527801,105830.0,105820.0,0.21734913]
[1750428404437,0.02527801,105830.0,105820.0,0.37754913]
[1750428404652,0.04167801,105830.0,105820.0,0.37754913]
[1750428405978,0.0158297,105830.0,105820.0,0.37754913]
[1750428406826,0.0168297,105830.0,105820.0,0.37754913]
[1750428407042,0.0372781,105830.0,105820.0,0.37754913]
[1750428407686,0.0700781,105830.0,105820.0,0.37754913]
[1750428407894,0.08897552,105830.0,105820.0,0.37754913]
[1750428408107,0.08897543,105830.0,105820.0,0.37754913]
[1750428408316,0.07952668,105830.0,105820.0,0.37754913]
[1750428408530,0.08897543,105830.0,105820.0,0.37754913]
[1750428408744,0.07952668,105830.0,105820.0,0.37754913]
[1750428409407,0.09842428,105830.0,105820.0,0.37754913]
[1750428410473,0.08897535,105830.0,105820.0,0.37754913]
[1750428410693,0.09842419,105830.0,105820.0,0.37754913]
[1750428410901,0.10787312,105830.0,105820.0,0.37754913]
[1750428411130,0.10787312,105830.0,105810.0,0.37748056]
[1750428411131,0.24894895,105820.0,105810.0,0.37748056]
[1750428411364,0.82074484,105820.0,105810.0,0.37748056]
[1750428411577,0.80184599,105820.0,105810.0,0.3585793]
[1750428411801,0.79239634,105820.0,105810.0,0.35857939]
[1750428412081,0.79239634,105820.0,105790.0,0.21736659]
[1750428412082,0.03780511,105800.0,105790.0,0.21736659]
[1750428412323,0.06940511,105800.0,105790.0,0.37757561]
[1750428412546,0.25844102,105800.0,105790.0,0.37757561]
[1750428413012,0.0599535,105800.0,105790.0,0.37757561]
[1750428413229,0.04105108,105800.0,105790.0,0.37757561]
[1750428413447,0.06005135,105810.0,105800.0,0.21739021]
[1750428413663,0.06005117,105810.0,105800.0,0.21739021]
[1750428413892,0.02525018,105810.0,105800.0,0.21739021]
[1750428414112,0.82913616,105820.0,105810.0,0.21736994]
[1750428414113,0.64013598,105820.0,105810.0,0.21736994]
[1750428414323,1.17693616,105820.0,105810.0,0.21736994]
[1750428414540,1.13249616,105820.0,105810.0,0.21736994]
[1750428414756,1.17593616,105820.0,105810.0,0.21736994]
[1750428414979,0.59781828,105830.0,105820.0,0.21734913]
[1750428415206,0.0158297,105830.0,105820.0,0.21734913]
[1750428415442,0.81635444,105830.0,105820.0,0.1984501]
[1750428415673,0.81635444,105830.0,105820.0,0.2173494]
[1750428416353,0.62737202,105830.0,105820.0,0.22679878]
[1750428416585,0.57817451,105830.0,105820.0,0.22679878]
[1750428416799,0.03472668,105830.0,105820.0,0.22679878]
[1750428417005,0.04417552,105830.0,105820.0,0.22679878]
[1750428417447,0.03472668,105830.0,105820.0,0.22679878]
[1750428417684,0.59707193,105830.0,105820.0,0.22679878]
[1750428417896,0.61107193,105830.0,105820.0,0.22779878]
[1750428418109,0.80950328,105830.0,105820.0,0.2183494]
[1750428418324,0.83145488,105830.0,105820.0,0.20889993]
[1750428418554,0.8220063,105830.0,105820.0,0.001]
[1750428419216,1.25728523,105830.0,105820.0,0.001]
[1750428420647,1.93010608,105830.0,105820.0,0.001]
[1750428420893,1.98010608,105830.0,105820.0,0.001]
[1750428421378,1.93010608,105830.0,105820.0,0.001]
[1750428422361,2.00850208,105830.0,105820.0,0.001]
[1750428423038,7.05289808,105830.0,105820.0,0.001]
[1750428423492,7.07536919,105830.0,105820.0,0.001]
[1750428423963,7.10247807,105830.0,105820.0,0.001]
[1750428424200,7.07536919,105830.0,105820.0,0.001]
[1750428424451,6.57716919,105830.0,105820.0,0.001]
[1750428424678,0.57913886,105800.0,105790.0,8.902e-05]
[1750428424896,1.99819146,105800.0,105790.0,8.902e-05]
[1750428425361,7.07099046,105800.0,105790.0,8.902e-05]
[1750428426135,7.12699046,105800.0,105790.0,8.902e-05]
[1750428427093,0.57959784,105770.0,105760.0,0.0001]
[1750428427324,1.43121318,105770.0,105760.0,0.00057169]
[1750428428283,0.96461848,105770.0,105760.0,0.21804413]
[1750428428510,1.16316248,105770.0,105760.0,0.19913438]
[1750428428732,1.1018947,105770.0,105760.0,0.20313438]
[1750428428948,1.1452547,105770.0,105760.0,0.21258957]
[1750428429158,1.13580041,105770.0,105760.0,0.21158957]
[1750428429390,1.14502367,105770.0,105760.0,0.21158957]
[1750428429819,1.13580041,105770.0,105760.0,0.22104467]
[1750428430048,1.13580041,105770.0,105760.0,0.20213438]
[1750428430268,1.13580041,105770.0,105760.0,0.004]
[1750428430721,1.26317934,105770.0,105760.0,0.004]
[1750428431164,1.25623354,105770.0,105760.0,0.21201752]
[1750428431396,1.40161354,105770.0,105760.0,0.20256278]
[1750428431609,1.40161354,105770.0,105760.0,0.21201806]
[1750428431828,0.60281196,105770.0,105760.0,0.22147307]
[1750428432133,1.16516275,105770.0,105760.0,0.22147307]
[1750428432347,0.97607322,105770.0,105760.0,0.23092781]
[1750428432775,0.93271322,105770.0,105760.0,0.23092781]
[1750428432986,1.16516275,105770.0,105760.0,0.22147307]
[1750428433203,1.15570881,105770.0,105760.0,0.22147307]
[1750428433631,1.14625461,105770.0,105760.0,0.21201806]
[1750428433839,1.14625461,105770.0,105760.0,0.23092835]
[1750428434059,1.14625461,105770.0,105760.0,0.004]
[1750428434279,1.16820032,105770.0,105760.0,0.004]
[1750428435739,1.10864032,105770.0,105760.0,0.19310741]
[1750428435972,0.59335749,105770.0,105760.0,0.22147307]
[1750428436183,0.60281187,105770.0,105760.0,0.23092799]
[1750428436403,0.41372234,105770.0,105760.0,0.24038273]
[1750428436620,0.96661875,105770.0,105760.0,0.24038273]
[1750428436830,0.41372234,105770.0,105760.0,0.24038273]
[1750428437050,0.342,105770.0,105760.0,0.24038273]
[1750428437509,0.01145367,105770.0,105760.0,0.25668273]
[1750428437726,0.002,105770.0,105760.0,0.52730166]
[1750428437959,0.002,105770.0,105760.0,0.57189236]
[1750428438176,0.002,105770.0,105760.0,1.12478877]
[1750428438638,0.002,105770.0,105760.0,0.57189236]
[1750428438843,0.002,105770.0,105760.0,0.63189236]
[1750428439086,0.8382,105790.0,105780.0,0.21743131]
[1750428439298,0.8382,105790.0,105780.0,0.37747131]
[1750428439961,0.4982,105790.0,105780.0,0.5643555]
[1750428440399,1.11335562,105820.0,105810.0,0.20791958]
[1750428440615,1.82129492,105820.0,105810.0,0.19846895]
[1750428440832,0.22681976,105810.0,105800.0,0.18903591]
[1750428441059,0.77971698,105810.0,105800.0,0.20793895]
[1750428441265,0.77971698,105810.0,105800.0,0.20793904]
[1750428441483,0.57179722,105810.0,105800.0,0.21739047]
[1750428441721,0.58171897,105810.0,105800.0,0.21739047]
[1750428441957,0.21784061,105810.0,105800.0,0.21739047]
[1750428442172,0.77073702,105810.0,105800.0,0.21739047]
[1750428442624,0.77373702,105810.0,105800.0,0.18903591]
[1750428442844,0.76428675,105810.0,105800.0,0.20793922]
[1750428443071,0.77328675,105810.0,105800.0,0.21839074]
[1750428443311,0.76383621,105810.0,105800.0,0.001]
[1750428443561,0.88016442,105810.0,105800.0,0.001]
[1750428443785,1.78760168,105810.0,105800.0,0.001]
[1750428443999,1.23470527,105810.0,105800.0,0.001]
[1750428444436,6.83199768,105810.0,105800.0,0.001]
[1750428444688,6.27910127,105810.0,105800.0,0.001]
[1750428446338,6.48246127,105810.0,105800.0,0.001]
[1750428449502,1.43806527,105810.0,105800.0,0.001]
[1750428450213,7.03535768,105810.0,105800.0,0.001]
[1750428450468,0.20797818,105780.0,105770.0,0.07624494]
[1750428450705,0.20799811,105770.0,105760.0,0.19856278]
[1750428450943,0.00945465,105760.0,105750.0,0.30933599]
[1750428451180,0.02836476,105760.0,105750.0,0.39516]
[1750428451450,0.01890957,105760.0,105750.0,0.40461563]
[1750428451677,0.02836476,105760.0,105750.0,0.40461563]
[1750428451904,0.02836476,105760.0,105750.0,0.30947042]
[1750428452131,0.02836458,105760.0,105750.0,0.30947042]
[1750428452563,0.03781977,105760.0,105750.0,0.30947042]
[1750428452820,0.02836458,105760.0,105750.0,0.30947042]
[1750428453068,0.03781977,105760.0,105750.0,0.31047042]
[1750428453306,0.23638246,105760.0,105750.0,0.00123372]
[1750428453531,0.76091429,105760.0,105750.0,0.01068998]
[1750428453752,0.76091429,105760.0,105750.0,0.21872752]
[1750428453979,0.76091429,105760.0,105750.0,0.21972752]
[1750428454670,0.76091429,105760.0,105750.0,0.22918351]
[1750428454902,0.7514591,105760.0,105750.0,0.19135901]
[1750428455121,0.74200382,105760.0,105750.0,0.00123372]
[1750428455602,0.74400382,105760.0,105750.0,0.19035901]
[1750428455823,0.74400382,105760.0,105750.0,0.00123372]
[1750428456035,0.74400382,105760.0,105750.0,0.00023372]
[1750428456486,0.74600382,105760.0,105750.0,0.00123372]
[1750428456716,0.94924382,105760.0,105750.0,0.00123372]
[1750428457163,0.39634741,105760.0,105750.0,0.19981527]
[1750428457387,0.61908625,105760.0,105750.0,0.22818297]
[1750428457598,0.62854117,105760.0,105750.0,0.23763878]
[1750428457864,0.81764858,105760.0,105750.0,0.22818315]
[1750428458088,0.80819393,105760.0,105750.0,0.21872743]
[1750428458330,0.80819393,105760.0,105750.0,0.19981527]
[1750428458550,0.79873901,105760.0,105750.0,0.00123372]
[1750428458805,0.79873901,105760.0,105750.0,0.19981527]
[1750428459281,0.79873901,105760.0,105750.0,0.21872716]
[1750428459518,0.6285418,105760.0,105750.0,0.22818288]
[1750428459771,0.81764921,105760.0,105750.0,0.21872716]
[1750428460000,0.81764921,105760.0,105750.0,0.22818297]
[1750428460241,0.81764921,105760.0,105750.0,0.23763869]
[1750428460491,0.82710458,105760.0,105750.0,0.23763869]
[1750428460976,0.82710458,105760.0,105750.0,0.23763806]
[1750428461212,0.06618966,105760.0,105750.0,0.23763806]
[1750428461670,0.004,105760.0,105750.0,0.23763806]
[1750428461906,0.004,105760.0,105750.0,0.26983806]
[1750428462823,0.004,105760.0,105750.0,0.42979806]
[1750428463353,0.004,105760.0,105750.0,0.48979806]
[1750428463912,0.01345465,105760.0,105750.0,0.48979806]
[1750428464134,0.004,105760.0,105750.0,0.48979806]
[1750428465102,0.004,105760.0,105750.0,0.65297305]
[1750428466283,0.004,105760.0,105750.0,0.58507699]
[1750428466510,0.004,105760.0,105750.0,0.58503699]
[1750428467680,0.004,105760.0,105750.0,0.42511699]
[1750428467899,0.0323644,105760.0,105750.0,0.45755806]
[1750428468155,0.594716,105760.0,105750.0,0.45755806]
[1750428468401,0.79327869,105760.0,105750.0,0.45755806]
[1750428468614,0.79327869,105760.0,105750.0,0.44810243]
[1750428468844,0.7743693,105760.0,105750.0,0.4291909]
[1750428469051,0.7743693,105760.0,105750.0,0.3691909]
[1750428469276,0.76491429,105760.0,105750.0,0.36919126]
[1750428470283,0.57580652,105760.0,105750.0,0.38810261]
[1750428470491,0.59471627,105760.0,105750.0,0.38810261]
[1750428471376,0.04181986,105760.0,105750.0,0.38810261]
[1750428471583,0.2309279,105760.0,105750.0,0.37864716]
[1750428472019,0.2309279,105760.0,105750.0,0.38810297]
[1750428472241,0.78382431,105760.0,105750.0,0.38810297]
[1750428472455,0.5947169,105760.0,105750.0,0.38810297]
[1750428472668,0.5947169,105760.0,105750.0,0.3975586]
[1750428472890,0.78382431,105760.0,105750.0,0.3975586]
[1750428473183,0.78382476,105760.0,105750.0,0.38810297]
[1750428473395,0.78382476,105760.0,105750.0,0.39755869]
[1750428473632,0.77436966,105760.0,105750.0,0.38810297]
[1750428473880,0.77436966,105760.0,105750.0,0.37864716]
[1750428474330,0.22147325,105760.0,105750.0,0.38810279]
[1750428474539,0.77436966,105760.0,105750.0,0.38810288]
[1750428475408,0.77436966,105760.0,105750.0,0.16115372]
[1750428475621,0.78685919,105760.0,105750.0,0.16115372]
[1750428475838,0.78685919,105760.0,105750.0,0.00123372]
[1750428476048,1.12685919,105760.0,105750.0,0.00123372]
[1750428476489,1.09545919,105760.0,105750.0,0.20927117]
[1750428476924,1.08600382,105760.0,105750.0,0.19981518]
[1750428477158,1.08600382,105760.0,105750.0,0.19035901]
[1750428477377,1.08600382,105760.0,105750.0,0.19981527]
[1750428477834,1.08600382,105760.0,105750.0,0.00123372]
[1750428478056,1.92441916,105760.0,105750.0,0.00123372]
[1750428478326,1.37152275,105760.0,105750.0,0.00123372]
[1750428480482,7.03335601,105760.0,105750.0,0.00123372]
[1750428480706,7.10584547,105760.0,105750.0,0.00123372]
[1750428481144,7.10963447,105760.0,105750.0,0.00123372]
[1750428481800,7.10763447,105760.0,105750.0,0.00023372]
[1750428482016,7.10563447,105760.0,105750.0,0.00023372]
[1750428482258,0.63602222,105750.0,105740.0,0.0001]
[1750428482479,6.83622983,105740.0,105730.0,0.0001]
[1750428482693,7.09134876,105740.0,105730.0,0.0001]
[1750428482924,6.53845235,105740.0,105730.0,0.0001]
[1750428483416,6.56092581,105740.0,105730.0,0.0001]
[1750428483634,6.53845235,105740.0,105730.0,0.0001]
[1750428484568,5.98555594,105740.0,105730.0,0.0001]
[1750428484784,6.53845235,105740.0,105730.0,0.0001]
[1750428485241,1.23421635,105740.0,105730.0,0.0001]
[1750428485459,1.4226755,105740.0,105730.0,0.0001]
[1750428485683,1.4306755,105740.0,105730.0,0.0011]
[1750428485936,1.4201755,105740.0,105730.0,0.0011]
[1750428486603,1.4356755,105740.0,105730.0,0.0011]
[1750428486823,1.9338755,105740.0,105730.0,0.0011]
[1750428487272,1.94841635,105740.0,105730.0,0.0011]
[1750428487720,7.06992123,105740.0,105730.0,0.0011]
[1750428487942,7.04281235,105740.0,105730.0,0.0011]
[1750428491212,7.04660235,105740.0,105730.0,0.0011]
[1750428491688,5.62965579,105730.0,105720.0,0.0001]
[1750428491912,6.27783113,105730.0,105720.0,0.00024132]
[1750428493023,7.05417857,105730.0,105720.0,0.00024132]
[1750428493237,7.10417857,105730.0,105720.0,0.00024132]
[1750428493431,7.10917857,105730.0,105720.0,0.00124132]
[1750428495745,6.55628216,105730.0,105720.0,0.00124132]
[1750428496168,6.56007116,105730.0,105720.0,0.00124132]
[1750428496812,7.11296757,105730.0,105720.0,0.00124132]
[1750428497553,6.78556739,105720.0,105710.0,0.0001]
[1750428497781,7.04064632,105720.0,105710.0,0.0001]
[1750428498214,6.99064632,105720.0,105710.0,0.0001]
[1750428498431,7.03384632,105720.0,105710.0,0.0001]
[1750428498684,7.08384632,105720.0,105710.0,0.0001]
[1750428500010,7.08784632,105720.0,105710.0,0.0011]
[1750428500239,6.25274991,105720.0,105710.0,0.0011]
[1750428500468,0.84391665,105720.0,105710.0,0.0011]
[1750428500705,1.39681306,105720.0,105710.0,0.0328]
[1750428500923,0.41809639,105720.0,105710.0,0.2314566]
[1750428501140,0.41809639,105720.0,105710.0,0.0328]
[1750428501141,0.58883772,105720.0,105710.0,0.0328]
[1750428501358,1.14173413,105720.0,105710.0,0.0328]
[1750428501788,1.23701306,105720.0,105710.0,0.0328]
[1750428502007,1.23701306,105720.0,105710.0,0.0011]
[1750428503142,1.39677306,105720.0,105710.0,0.0011]
[1750428503566,1.20835391,105720.0,105710.0,0.0011]
[1750428503801,1.41131391,105720.0,105710.0,0.0011]
[1750428506702,1.99531032,105720.0,105710.0,0.0011]
[1750428509503,7.03970632,105720.0,105710.0,0.0011]
[1750428509724,7.06218903,105720.0,105710.0,0.0011]
[1750428510180,7.03970632,105720.0,105710.0,0.0011]
[1750428510400,7.06218752,105720.0,105710.0,0.0011]
[1750428510854,7.16218752,105720.0,105710.0,0.0011]
[1750428511089,6.16704892,105710.0,105700.0,0.0001]
[1750428511313,6.4865887,105710.0,105700.0,0.0001]
[1750428511541,6.78500497,105700.0,105690.0,0.0001]
[1750428511768,6.48710749,105700.0,105690.0,0.0001]
[1750428511978,6.44870749,105700.0,105690.0,0.0001]
[1750428513944,6.45270749,105700.0,105690.0,0.0001]
[1750428514172,1.2435111,105700.0,105690.0,0.20583266]
[1750428514393,0.9085111,105700.0,105690.0,0.24175547]
[1750428514620,0.9085111,105700.0,105690.0,0.22283266]
[1750428514621,1.2485111,105700.0,105690.0,0.22283266]
[1750428514835,1.2485111,105700.0,105690.0,0.24175547]
[1750428515060,0.009,105700.0,105690.0,0.26067774]
[1750428515551,0.349,105700.0,105690.0,0.26067774]
[1750428515771,0.35845993,105700.0,105690.0,0.26067774]
[1750428516197,0.345,105700.0,105690.0,0.26067774]
[1750428516699,0.345,105700.0,105690.0,0.26167774]
[1750428516922,0.35892013,105700.0,105690.0,0.26067774]
[1750428517142,0.3683805,105700.0,105690.0,0.26067774]
[1750428517357,0.92127691,105700.0,105690.0,0.26067774]
[1750428517568,0.92127691,105700.0,105690.0,0.22483266]
[1750428517569,1.11249166,105700.0,105690.0,0.22483266]
[1750428517791,1.12195221,105700.0,105690.0,0.24375547]
[1750428518012,1.11249228,105700.0,105690.0,0.23429411]
[1750428518232,1.10303208,105700.0,105690.0,0.23429411]
[1750428518444,1.10303208,105700.0,105690.0,0.2342942]
[1750428518882,1.10303208,105700.0,105690.0,0.24375565]
[1750428519347,1.10303208,105700.0,105690.0,0.23429429]
[1750428519348,1.08411116,105700.0,105690.0,0.23429429]
[1750428519568,1.08411116,105700.0,105690.0,0.22775565]
[1750428519787,1.08411116,105700.0,105690.0,0.25261692]
[1750428519788,1.09357171,105700.0,105690.0,0.25261692]
[1750428520280,1.09357171,105700.0,105690.0,0.2620781]
[1750428520567,1.09357171,105700.0,105690.0,0.25261692]
[1750428520825,1.09357171,105700.0,105690.0,0.21829429]
[1750428521050,1.09357171,105700.0,105690.0,0.2017942]
[1750428521265,1.09357171,105700.0,105690.0,0.0191]
[1750428521782,1.08411116,105700.0,105690.0,0.0031]
[1750428522485,1.17939009,105700.0,105690.0,0.0031]
[1750428522734,1.19393094,105700.0,105690.0,0.0031]
[1750428522985,1.38561094,105700.0,105690.0,0.0031]
[1750428525657,1.35361094,105700.0,105690.0,0.0031]
[1750428526130,1.39669094,105700.0,105690.0,0.0031]
[1750428528893,1.42779094,105700.0,105690.0,0.0031]
[1750428530261,6.52218694,105700.0,105690.0,0.0031]
[1750428531364,6.52018694,105700.0,105690.0,0.0011]
[1750428531793,6.57018694,105700.0,105690.0,0.0011]
[1750428532018,6.59266047,105700.0,105690.0,0.0011]
[1750428532232,6.59566047,105700.0,105690.0,0.0011]
[1750428532443,6.54566047,105700.0,105690.0,0.0011]
[1750428532664,6.59766047,105700.0,105690.0,0.0011]
[1750428533094,6.59466047,105700.0,105690.0,0.0001]
[1750428533320,7.14555688,105700.0,105690.0,0.0001]
[1750428533764,6.59666047,105700.0,105690.0,0.0001]
[1750428534474,6.04376406,105700.0,105690.0,0.0001]
[1750428534698,6.59666047,105700.0,105690.0,0.0001]
[1750428535374,6.37742694,105700.0,105690.0,0.0011]
[1750428535594,6.58018694,105700.0,105690.0,0.0011]
[1750428536660,6.54908694,105700.0,105690.0,0.0011]
[1750428536890,6.49908694,105700.0,105690.0,0.0011]
[1750428537106,1.18739009,105700.0,105690.0,0.0011]
[1750428537314,1.39015009,105700.0,105690.0,0.0011]
[1750428537981,1.40469094,105700.0,105690.0,0.0011]
[1750428538623,1.43589094,105700.0,105690.0,0.0011]
[1750428539289,1.48589094,105700.0,105690.0,0.0011]
[1750428539801,1.40469094,105700.0,105690.0,0.0011]
[1750428542131,1.20193094,105700.0,105690.0,0.0172]
[1750428542386,0.07200084,105700.0,105690.0,0.25081638]
[1750428542621,0.28013634,105700.0,105690.0,0.23189411]
[1750428542857,0.28013634,105700.0,105690.0,0.25081656]
[1750428542858,0.83303275,105700.0,105690.0,0.25081656]
[1750428543089,0.82357202,105700.0,105690.0,0.25081656]
[1750428543324,1.17303275,105700.0,105690.0,0.25081656]
[1750428543556,1.16903275,105700.0,105690.0,0.25081656]
[1750428543784,1.16303275,105700.0,105690.0,0.24981656]
[1750428544014,1.16303275,105700.0,105690.0,0.24981674]
[1750428544241,1.15657273,105700.0,105690.0,0.25081674]
[1750428544521,1.14711244,105700.0,105690.0,0.23189411]
[1750428544813,0.68003441,105700.0,105690.0,0.22243266]
[1750428545029,1.23293082,105700.0,105690.0,0.2508171]
[1750428545297,1.23493082,105700.0,105690.0,0.24135583]
[1750428545550,1.22547009,105700.0,105690.0,0.24135583]
[1750428545793,1.22547009,105700.0,105690.0,0.23189429]
[1750428546516,1.22547009,105700.0,105690.0,0.24135574]
[1750428546747,1.24439102,105700.0,105690.0,0.25081701]
[1750428547008,0.345,105700.0,105690.0,0.26027801]
[1750428547251,0.005,105700.0,105690.0,0.26027801]
[1750428547736,0.005,105700.0,105690.0,0.41991801]
[1750428548206,0.002,105700.0,105690.0,0.41891801]
[1750428548429,0.003,105700.0,105690.0,0.41991801]
[1750428548688,0.001,105700.0,105690.0,0.41991801]
[1750428549138,0.001,105700.0,105690.0,0.42091801]
[1750428550805,0.001,105700.0,105690.0,0.57816976]
[1750428555573,0.001,105700.0,105690.0,1.13106617]
[1750428555817,0.00014119,105730.0,105720.0,0.24835472]
[1750428556061,0.00014119,105730.0,105720.0,0.40795472]
[1750428556303,0.00014119,105730.0,105720.0,0.5985035]
[1750428558018,0.00014119,105730.0,105720.0,0.5995035]
[1750428558239,0.00114119,105730.0,105720.0,0.6005035]
[1750428558701,0.00114119,105730.0,105720.0,0.50523365]
[1750428559160,0.00114119,105730.0,105720.0,0.33617533]
[1750428559395,0.76211414,105730.0,105720.0,0.36965666]
[1750428559641,0.76211414,105730.0,105720.0,0.2006379]
[1750428559863,0.76211414,105730.0,105720.0,0.21009675]
[1750428560177,0.75265654,105730.0,105720.0,0.002]
[1750428560196,0.19976013,105730.0,105720.0,0.21009657]
[1750428560419,0.77157219,105730.0,105720.0,0.21009657]
[1750428560627,1.11157219,105730.0,105720.0,0.002]
[1750428560841,1.10211459,105730.0,105720.0,0.2100964]
[1750428561064,1.10211459,105730.0,105720.0,0.20063781]
[1750428561293,1.10211459,105730.0,105720.0,0.21955507]
[1750428561511,1.10211414,105730.0,105720.0,0.19117896]
[1750428561759,1.10211414,105730.0,105720.0,0.002]
[1750428561992,1.09265654,105730.0,105720.0,0.21009657]
[1750428562215,1.11157219,105730.0,105720.0,0.22901366]
[1750428562437,1.11157219,105730.0,105720.0,0.21955516]
[1750428562903,1.10211459,105730.0,105720.0,0.21009657]
[1750428563834,1.10211459,105730.0,105720.0,0.21955507]
[1750428564061,0.90349538,105730.0,105720.0,0.22901339]
[1750428564278,1.11157192,105730.0,105720.0,0.21955507]
[1750428564507,1.12102997,105730.0,105720.0,0.21955507]
[1750428564719,1.12102997,105730.0,105720.0,0.22901348]
[1750428564937,1.11157246,105730.0,105720.0,0.21009657]